Workbook

Sheet BILANCIO_COLTURALE
A1: PIANO FERTILIZZAZIONE - Calcolo fabbisogni di N, P e K con il METODO BILANCIO COLTURALE (D.P.I. - Norme Generali cap. 2.9.2 e Allegato II)
A2: ⚠️ INSERIRE LE INFORMAZIONI RICHIESTE NELLE CELLE CON IL TESTO BLU ⚠️
A4: INFORMAZIONI GENERALI
A5: ANNO | C5: 2026 | D5: Note: / | E5: % azotofissazione proposta | F5: % azotofissazione reale
A6: Superficie (ha) | B6: ettari | C6: 1.55 | D6: Azotofissazione (%) | E6: =IFERROR(INDEX(DB_COLTURE!$I$2:$I$428, MATCH(BILANCIO_COLTURALE!$C$8, DB_COLTURE!$B$2:$B$428, 0)), "") -> 0 | F6: 0
A7: Riferimenti area omogenea/appezzamento | C7: ***NOME AREA/APPEZZAMENTO*** | E7: Tipologia
A8: COLTURA | C8: Grano tenero biscottiero (granella) | D8: Tipologia coltura e fase del ciclo produttivo | E8: =IFERROR(INDEX(DB_COLTURE!$A$2:$A$428, MATCH(BILANCIO_COLTURALE!$C$8, DB_COLTURE!$B$2:$B$428, 0)), "") -> ERBACEE | F8: Produzione
A9: RESA PREVISTA | B9: kg/ha | C9: 6000
A10: Coltura in precessione | C10: Nessuna/Non Nota
A12: ANALISI DEL TERRENO E GIUDIZIO
A13: Parametro | B13: U.M. | C13: Valore (DA INSERIRE) | D13: Giudizio (vedi Norme Generali - Allegato I) | E13: Note
A14: Argilla | B14: % | C14: 15 | D14: ------------ | E14: Inserire valore da analisi terreno
A15: Sabbia | B15: % | C15: 20 | D15: ------------ | E15: Inserire valore da analisi terreno
A16: Limo | B16: % | C16: =IF(OR($C$14="",$C$15=""),"",MAX(0,100-$C$14-$C$15)) -> 65 | D16: ------------ | E16: Campo automatico
A17: Classe USDA | B17: --- | C17: =IF(ABS($C$15+$C$16+$C$14-100)>0.01,"ERRORE: S+L+C≠100", IF( SUM( IF(($C$16/100)+1.5*($C$14/100)<0.15,1,0), IF(AND(($C$16/100)+1.5*($C$14/100)>=0.15, ($C$16/100)+2*($C$14/100)<0.3),2,0), IF(OR( AND(($C$14/100)>=0.07, ($C$14/100)<0.2, ($C$15/100)>0.52, ($C$16/100)+2*($C$14/100)>=0.3), AND(($C$14/100)<0.07, ($C$16/100)<0.5, ($C$16/100)+2*($C$14/100)>=0.3) ),3,0), IF(AND(($C$14/100)>=0.07, ($C$14/100)<0.27, ($C$16/100)>=0.28, ($C$16/100)<0.5, ($C$15/100)<=0.52),4,0), IF(OR( AND(($C$16/100)>=0.5, ($C$14/100)>=0.12, ($C$14/100)<0.27), AND(($C$16/100)>=0.5, ($C$16/100)<0.8, ($C$14/100)<0.12) ),5,0), IF(AND(($C$16/100)>=0.8, ($C$14/100)<0.12),6,0), IF(AND(($C$14/100)>=0.2, ($C$14/100)<0.35, ($C$16/100)<0.28, ($C$15/100)>0.45),7,0), IF(AND(($C$14/100)>=0.27, ($C$14/100)<0.4, ($C$15/100)>0.2, ($C$15/100)<=0.45),8,0), IF(AND(($C$14/100)>=0.27, ($C$14/100)<0.4, ($C$15/100)<=0.2),9,0), IF(AND(($C$14/100)>=0.35, ($C$15/100)>0.45),10,0), IF(AND(($C$14/100)>=0.4, ($C$16/100)>=0.4),11,0), IF(AND(($C$14/100)>=0.4, ($C$15/100)<=0.45, ($C$16/100)<0.4),12,0) ) =0,"(non classificato)", CHOOSE( SUM( IF(($C$16/100)+1.5*($C$14/100)<0.15,1,0), IF(AND(($C$16/100)+1.5*($C$14/100)>=0.15, ($C$16/100)+2*($C$14/100)<0.3),2,0), IF(OR( AND(($C$14/100)>=0.07, ($C$14/100)<0.2, ($C$15/100)>0.52, ($C$16/100)+2*($C$14/100)>=0.3), AND(($C$14/100)<0.07, ($C$16/100)<0.5, ($C$16/100)+2*($C$14/100)>=0.3) ),3,0), IF(AND(($C$14/100)>=0.07, ($C$14/100)<0.27, ($C$16/100)>=0.28, ($C$16/100)<0.5, ($C$15/100)<=0.52),4,0), IF(OR( AND(($C$16/100)>=0.5, ($C$14/100)>=0.12, ($C$14/100)<0.27), AND(($C$16/100)>=0.5, ($C$16/100)<0.8, ($C$14/100)<0.12) ),5,0), IF(AND(($C$16/100)>=0.8, ($C$14/100)<0.12),6,0), IF(AND(($C$14/100)>=0.2, ($C$14/100)<0.35, ($C$16/100)<0.28, ($C$15/100)>0.45),7,0), IF(AND(($C$14/100)>=0.27, ($C$14/100)<0.4, ($C$15/100)>0.2, ($C$15/100)<=0.45),8,0), IF(AND(($C$14/100)>=0.27, ($C$14/100)<0.4, ($C$15/100)<=0.2),9,0), IF(AND(($C$14/100)>=0.35, ($C$15/100)>0.45),10,0), IF(AND(($C$14/100)>=0.4, ($C$16/100)>=0.4),11,0), IF(AND(($C$14/100)>=0.4, ($C$15/100)<=0.45, ($C$16/100)<0.4),12,0) ), "SABBIOSO","SABBIOSO FRANCO","FRANCO SABBIOSO","FRANCO","FRANCO LIMOSO","LIMOSO", "FRANCO ARGILLOSO SABBIOSO","FRANCO ARGILLOSO","FRANCO ARGILLOSO LIMOSO", "ARGILLOSO SABBIOSO","ARGILLOSO LIMOSO","ARGILLOSO" ) ) ) -> FRANCO LIMOSO | D17: ------------ | E17: Campo automatico
A18: Azoto totale | B18: g/kg | C18: 1.77 | D18: =IF($C$18="","",IF($C$18<0.5,"MOLTO BASSA",IF($C$18<=1,"BASSA",IF($C$18<=2,"MEDIA",IF($C$18<=2.5,"ELEVATA","MOLTO ELEVATA"))))) -> MEDIA | E18: Inserire valore da analisi terreno
A19: Fosforo | B19: ppm P2O5 | C19: 25 | D19: =CALCOLO!D4 -> NORMALE | E19: Inserire valore da analisi terreno
A20: Metodo analisi P (scegliere tra Olsen / Bray-Kurtz) | B20: --- | C20: Olsen | D20: ------------ | E20: ------------
A21: Potassio | B21: ppm K2O | C21: 150 | D21: =CALCOLO!D2 -> MEDIO | E21: Inserire valore da analisi terreno
A22: Calcare totale | B22: g/kg | C22: 12.5 | D22: =IF($C$22="","",IF($C$22<=10,"NON CALCAREO",IF($C$22<=100,"POCO CALCAREO",IF($C$22<=250,"MEDIAMENTE CALCAREO",IF($C$22<=500,"CALCAREO","MOLTO CALCAREO"))))) -> POCO CALCAREO | E22: Inserire valore da analisi terreno
A23: Calcare attivo | B23: g/kg | C23: 11.3 | D23: =IF($C$23="","",IF($C$23<=10,"BASSA",IF($C$23<=50,"MEDIA",IF($C$23<=75,"ELEVATA","MOLTO ELEVATA")))) -> MEDIA | E23: Inserire valore da analisi terreno
A24: pH | B24: --- | C24: 7.7 | D24: =IF($C$24="","",IF($C$24<5.4,"FORTEMENTE ACIDO",IF($C$24<=6,"ACIDO",IF($C$24<=6.7,"LEGGERMENTE ACIDO",IF($C$24<=7.3,"NEUTRO",IF($C$24<=8.1,"LEGGERMENTE ALCALINO",IF($C$24<=8.6,"ALCALINO","FORTEMENTE ALCALINO"))))))) -> LEGGERMENTE ALCALINO | E24: Inserire valore da analisi terreno
A25: CSC | B25: meq/100g | C25: 8.71 | D25: =IF($C$25="","",IF($C$25<10,"BASSA",IF($C$25<20,"MEDIA","ELEVATA"))) -> BASSA | E25: Inserire valore da analisi terreno
A26: Sostanza organica | B26: % | C26: 1.5 | D26: =IF($C$26="","", IF(OR($C$17="SABBIOSO",$C$17="SABBIOSO FRANCO",$C$17="FRANCO SABBIOSO"), IF($C$26<0.8,"BASSO",IF($C$26<=2,"NORMALE","ELEVATO")), IF(OR($C$17="FRANCO",$C$17="FRANCO LIMOSO",$C$17="FRANCO ARGILLOSO",$C$17="FRANCO ARGILLOSO SABBIOSO"), IF($C$26<1,"BASSO",IF($C$26<=2.5,"NORMALE","ELEVATO")), IF(OR($C$17="ARGILLOSO",$C$17="ARGILLOSO LIMOSO",$C$17="FRANCO ARGILLOSO LIMOSO",$C$17="ARGILLOSO SABBIOSO",$C$17="LIMOSO"), IF($C$26<1.2,"BASSO",IF($C$26<=3,"NORMALE","ELEVATO")), "(classe non riconosciuta)" )))) -> NORMALE | E26: Inserire valore da analisi terreno
A27: Rapporto C/N | B27: --- | C27: =IF(OR($C$26="",$C$18="",$C$18=0),"",($C$26*10)/(1.724*$C$18)) -> 4.915647489 | D27: =IF($C$27="","",IF($C$27<9,"BASSO (MINERALIZZAZIONE RAPIDA)",IF($C$27<=12,"MEDIO (MINERALIZZAZIONE NORMALE)","ELEVATO (MINERALIZZAZIONE LENTA)"))) -> BASSO (MINERALIZZAZIONE RAPIDA) | E27: Inserire valore da analisi terreno
A29: ALTRI PARAMETRI NECESSARI AL CALCOLO DI N-P-K (D.P.I. Norme Generali - Allegato II)
A30: Parametro | C30: Valore | D30: Info | E30: Note
A31: Apporti azoto ubicazione GN (kg/ha anno) | C31: Pianura limitrofa zona urbanizzata | D31: =IFERROR(INDEX(DB_PARAMETRI!$B$46:$B$48, MATCH($C$31, DB_PARAMETRI!$A$46:$A$48, 0)), "") -> 20 | E31: Selezionare un valore in base all'ubicazione
A32: Drenaggio (lisciviazione N) | C32: Normale | E32: Selezionare un valore in base alle condizioni del terreno
A33: Pioggia ott-gen (mm) (lisciviazione N) | C33: 200 | E33: Inserire valore ricavato da stazione meteo aziendale/pubblica
A34: Metodo lisciviazione N (c1 oppure c2) | C34: c1_pioggia | D34: =IF($C$34="c1_pioggia","CN da pioggia","CN da drenaggio") -> CN da pioggia | E34: Selezionare metodo lisciviazione (erbacee). Nel caso di coltura arborea il valore non viene utilizzato dal foglio di calcolo
A35: Profondità riferimento terreno (cm) | C35: 30 | E35: Selezionare la profondità considerata (30 o 40 centimetri)
A39: APPORTI DI FERTILIZZANTI ORGANICI NELL'ANNO PRECEDENTE | D39: Parametro "FN" del bilancio dell'azoto (erbacee ed arboree)
A40: Tipologia | B40: N tot (kg/ha) | C40: Frequenza
A50: FABBISOGNI STIMATI CON IL METODO DEL BILANCIO COLTURALE
A51: RISULTATI DA UTILIZZARE NEL PIANO DI FERTILIZZAZIONE | D51: MAS (limite massimo N) | E51: =IFERROR(IF(INDEX(DB_COLTURE!$M$2:$M$105,MATCH(BILANCIO_COLTURALE!$C$8,DB_COLTURE!$B$2:$B$105,0))="","",INDEX(DB_COLTURE!$M$2:$M$105,MATCH(BILANCIO_COLTURALE!$C$8,DB_COLTURE!$B$2:$B$105,0))),"") -> 
A52: N netto (kg/ha) | B52: =IF(OR($E$8="ARBOREE", $E$8="FORAGGERE", $E$8="ORTICOLE_PLURIENNALI", $E$8="PICCOLI_FRUTTI"), IF(OR($F$8="Pre-impianto",$F$8="Allevamento",$F$8="Pre-semina"), "Vedi Scheda Norme Specifiche per Coltura", CALCOLO!$B$35), CALCOLO!$B$35) -> 119.545 | D52: =IFERROR(INDEX(DB_COLTURE!$L$2:$L$105, MATCH(BILANCIO_COLTURALE!$C$8, DB_COLTURE!$B$2:$B$105, 0)), "") -> 180
A53: P2O5 netto (kg/ha) | B53: =IF(OR($E$8="ARBOREE", $E$8="FORAGGERE", $E$8="ORTICOLE_PLURIENNALI", $E$8="PICCOLI_FRUTTI"), IF(OR($F$8="Pre-impianto",$F$8="Allevamento",$F$8="Pre-semina"), "Vedi Scheda Norme Specifiche per Coltura", CALCOLO!$B$36), CALCOLO!$B$36) -> 58.8 | D53: STIMA (ppm) P2O5 terreno fine ciclo (per piano successivo), con apporto pari a quello stimato | F53: =CALCOLO!B89 -> 25
A54: K2O netto (kg/ha) | B54: =IF(OR($E$8="ARBOREE", $E$8="FORAGGERE", $E$8="ORTICOLE_PLURIENNALI", $E$8="PICCOLI_FRUTTI"), IF(OR($F$8="Pre-impianto",$F$8="Allevamento",$F$8="Pre-semina"), "Vedi Scheda Norme Specifiche per Coltura", CALCOLO!$B$37), CALCOLO!$B$37) -> 66.6 | D54: STIMA (ppm) K2O terreno fine ciclo (per piano successivo), con apporto pari a quello stimato | F54: =CALCOLO!B98 -> 156.0569352
A56: N totale (kg) - totale superficie | B56: =IF(OR($E$8="ARBOREE", $E$8="FORAGGERE", $E$8="ORTICOLE_PLURIENNALI", $E$8="PICCOLI_FRUTTI"), IF(OR($F$8="Pre-impianto",$F$8="Allevamento",$F$8="Pre-semina"), "Vedi Scheda Norme Specifiche per Coltura", CALCOLO!$B$39), CALCOLO!$B$39) -> 185.29475
A57: P2O5 totale (kg) - totale superficie | B57: =IF(OR($E$8="ARBOREE", $E$8="FORAGGERE", $E$8="ORTICOLE_PLURIENNALI", $E$8="PICCOLI_FRUTTI"), IF(OR($F$8="Pre-impianto",$F$8="Allevamento",$F$8="Pre-semina"), "Vedi Scheda Norme Specifiche per Coltura", CALCOLO!$B$40), CALCOLO!$B$40) -> 91.14
A58: K2O totale (kg) - totale superficie | B58: =IF(OR($E$8="ARBOREE", $E$8="FORAGGERE", $E$8="ORTICOLE_PLURIENNALI", $E$8="PICCOLI_FRUTTI"), IF(OR($F$8="Pre-impianto",$F$8="Allevamento",$F$8="Pre-semina"), "Vedi Scheda Norme Specifiche per Coltura", CALCOLO!$B$41), CALCOLO!$B$41) -> 103.23
B60: Fabbisogno calc. | C60: Detrazione/arricchimento
A61: N netto (kg/ha) | B61: =CALCOLO!B29 -> 168.6 | C61: =-(B61-CALCOLO!B35) -> -49.055
A62: P2O5 netto (kg/ha) | B62: =CALCOLO!B31 -> 58.8 | C62: =-(B62-CALCOLO!B36) -> 0
A63: K2O netto (kg/ha) | B63: =CALCOLO!B32 -> 36.6 | C63: =-(B63-CALCOLO!B37) -> 30

Sheet CALCOLO
A1: DATI PRINCIPALI | B1: Valore | D1: Valore
A2: K_analisi (K2O) | B2: =IFERROR(IF(BILANCIO_COLTURALE!B21="ppm K2O",BILANCIO_COLTURALE!C21,BILANCIO_COLTURALE!C21*1.205),"") -> 150 | C2: Riportato da foglio BILANCIO_COLTURALE (con eventuale conversione in K2O se necessario) | D2: =IFERROR(IF(B2<INDEX(DB_GIUDIZI_K!C:C,MATCH(B18,DB_GIUDIZI_K!A:A,0)),"BASSO",IF(B2<=INDEX(DB_GIUDIZI_K!D:D,MATCH(B18,DB_GIUDIZI_K!A:A,0)),"MEDIO","ELEVATO")),"") -> MEDIO | F2: N organico precessione | N2: =IF($B$2="","", IF(OR($B$18="SABBIOSO",$B$18="SABBIOSO FRANCO",$B$18="FRANCO SABBIOSO"), IF($B$2<96,"BASSO",IF($B$2<=144,"NORMALE","ELEVATO")), IF(OR($B$18="FRANCO",$B$18="FRANCO LIMOSO",$B$18="FRANCO ARGILLOSO",$B$18="FRANCO ARGILLOSO SABBIOSO",$B$18="LIMOSO"), IF($B$2<120,"BASSO",IF($B$2<=180,"NORMALE","ELEVATO")), IF(OR($B$18="ARGILLOSO",$B$18="ARGILLOSO LIMOSO",$B$18="FRANCO ARGILLOSO LIMOSO",$B$18="ARGILLOSO SABBIOSO"), IF($B$2<155,"BASSO",IF($B$2<=216,"NORMALE","ELEVATO")), "(classe non riconosciuta)" )))) -> NORMALE
A3: Argilla_% | B3: =BILANCIO_COLTURALE!C14 -> 15 | C3: Riportato da foglio BILANCIO_COLTURALE | F3: =BILANCIO_COLTURALE!A41:C44 -> 0 | G3: 0 | H3: 0 | I3: =IFERROR(INDEX(DB_PARAMETRI!$B$40:$E$42,MATCH($F3,DB_PARAMETRI!$A$40:$A$42,0),MATCH(H3,DB_PARAMETRI!B39:E39,0)),"0") -> 0 | J3: =G3*I3 -> 0
A4: P_analisi (P2O5) | B4: =IFERROR(IF(BILANCIO_COLTURALE!B19="ppm P2O5",BILANCIO_COLTURALE!C19,BILANCIO_COLTURALE!C19*2.291),"") -> 25 | C4: Riportato da foglio BILANCIO_COLTURALE (con eventuale conversione in P2O5 se necessario) | D4: =IF($B$4="","",IFERROR( IF($B$4<=INDEX(DB_GIUDIZI_P!$B$2:$B$3,IF($B$9="Olsen",1,2)),"MOLTO BASSO", IF($B$4<=INDEX(DB_GIUDIZI_P!$C$2:$C$3,IF($B$9="Olsen",1,2)),"BASSO", IF($B$4<=INDEX(DB_GIUDIZI_P!$D$2:$D$3,IF($B$9="Olsen",1,2)),"NORMALE", IF($B$4<=INDEX(DB_GIUDIZI_P!$E$2:$E$3,IF($B$9="Olsen",1,2)),"ELEVATO", "MOLTO ELEVATO" )))),"")) -> NORMALE | F4: 0 | G4: 0 | H4: 0 | I4: =IFERROR(INDEX(DB_PARAMETRI!$B$40:$E$42,MATCH($F4,DB_PARAMETRI!$A$40:$A$42,0),MATCH(H4,DB_PARAMETRI!B40:E40,0)),"0") -> 0 | J4: =G4*I4 -> 0
A5: N_tot_gkg | B5: =BILANCIO_COLTURALE!C18 -> 1.77 | C5: Riportato da foglio BILANCIO_COLTURALE | F5: 0 | G5: 0 | H5: 0 | I5: =IFERROR(INDEX(DB_PARAMETRI!$B$40:$E$42,MATCH($F5,DB_PARAMETRI!$A$40:$A$42,0),MATCH(H5,DB_PARAMETRI!B41:E41,0)),"0") -> 0 | J5: 0
A6: Calcare_tot_g_kg | B6: =BILANCIO_COLTURALE!C22 -> 12.5 | C6: Riportato da foglio BILANCIO_COLTURALE | F6: 0 | G6: 0 | H6: 0 | I6: =IFERROR(INDEX(DB_PARAMETRI!$B$40:$E$42,MATCH($F6,DB_PARAMETRI!$A$40:$A$42,0),MATCH(H6,DB_PARAMETRI!B42:E42,0)),"0") -> 0 | J6: 0
A7: SO_% | B7: =BILANCIO_COLTURALE!C26 -> 1.5 | C7: Riportato da foglio BILANCIO_COLTURALE | J7: =SUM(J3:J6) -> 0 | K7: Totale organici anni precedenti
A8: C/N | B8: =BILANCIO_COLTURALE!C27 -> 4.915647489 | C8: Riportato da foglio BILANCIO_COLTURALE
A9: Metodo_P | B9: =BILANCIO_COLTURALE!C20 -> Olsen | C9: Riportato da foglio BILANCIO_COLTURALE
A10: Drenaggio | B10: =BILANCIO_COLTURALE!C32 -> Normale | C10: Riportato da foglio BILANCIO_COLTURALE
A11: Pioggia_OttGen_mm | B11: =BILANCIO_COLTURALE!C33 -> 200 | C11: Riportato da foglio BILANCIO_COLTURALE
A12: Profondità_cm | B12: =BILANCIO_COLTURALE!C35 -> 30 | C12: Riportato da foglio BILANCIO_COLTURALE
A13: Precessione | B13: =BILANCIO_COLTURALE!C10 -> Nessuna/Non Nota | C13: Riportato da foglio BILANCIO_COLTURALE
A14: Da_densità | B14: =IFERROR(INDEX(DB_PARAMETRI!$D$3:$D$5, MATCH(B19, DB_PARAMETRI!$A$3:$A$5, 0)), 1.3) -> 1.3 | C14: Riportato da foglio BILANCIO_COLTURALE
A15: Arborea vero/falso | B15: =BILANCIO_COLTURALE!E8 -> ERBACEE | C15: Riportato da foglio BILANCIO_COLTURALE
A16: Fase | B16: =BILANCIO_COLTURALE!F8 -> Produzione | C16: Riportato da foglio BILANCIO_COLTURALE
A17: Scelta metodo CN erbacee | B17: =BILANCIO_COLTURALE!C34 -> c1_pioggia | C17: Riportato da foglio BILANCIO_COLTURALE
A18: Tessitura USDA | B18: =BILANCIO_COLTURALE!C17 -> FRANCO LIMOSO | C18: Riportato da foglio BILANCIO_COLTURALE
A19: Tessitura raggruppamento N | B19: =IFERROR(INDEX(DB_USDA_MAP!$C$2:$C$13, MATCH(B18, DB_USDA_MAP!$A$2:$A$13, 0)), "") -> Franco | C19: Riportato da foglio BILANCIO_COLTURALE
A20: Produzione | B20: =BILANCIO_COLTURALE!C9 -> 6000 | C20: Riportato da foglio BILANCIO_COLTURALE
A21: t (auto) | B21: =IFERROR(INDEX(DB_COLTURE!$K$2:$K$428, MATCH(BILANCIO_COLTURALE!$C$8, DB_COLTURE!$B$2:$B$428, 0)),"") -> 0.6 | C21: Riportato da foglio BILANCIO_COLTURALE
A22: MAS_N_limite | B22: =IFERROR(INDEX(DB_COLTURE!$L$2:$L$428, MATCH(BILANCIO_COLTURALE!$C$8, DB_COLTURE!$B$2:$B$428, 0)),"") -> 180 | C22: Riportato da foglio BILANCIO_COLTURALE
A24: Lettura coefficienti ASP/ASS | B24: Valore ASP/ASS
A25: Coeff_N | B25: =IFERROR(INDEX(DB_COLTURE!$E$2:$E$428, MATCH(BILANCIO_COLTURALE!$C$8, DB_COLTURE!$B$2:$B$428, 0)), "") -> 2.81
A26: Coeff_P2O5 | B26: =IFERROR(INDEX(DB_COLTURE!$F$2:$F$428, MATCH(BILANCIO_COLTURALE!$C$8, DB_COLTURE!$B$2:$B$428, 0)), "") -> 0.98
A27: Coeff_K2O | B27: =IFERROR(INDEX(DB_COLTURE!$G$2:$G$428, MATCH(BILANCIO_COLTURALE!$C$8, DB_COLTURE!$B$2:$B$428, 0)), "") -> 0.61
A29: N_domanda | B29: =IF(OR(BILANCIO_COLTURALE!$C$9="",B20="",B25=""),0,B20*B25/100)+IFERROR(IF(INDEX(DB_COLTURE!H:H,MATCH(BILANCIO_COLTURALE!C8,DB_COLTURE!B:B,0))="ASP",INDEX(DB_COLTURE!N:N,MATCH(BILANCIO_COLTURALE!C8,DB_COLTURE!B:B,0)),0),0) -> 168.6
A30: N_domanda azoto fissazione | B30: =B29-B48 -> 168.6
A31: P2O5_domanda | B31: =IF(OR(BILANCIO_COLTURALE!$C$9="", BILANCIO_COLTURALE!$C$8="", B26=""), 0, BILANCIO_COLTURALE!$C$9 * B26 / 100) -> 58.8
A32: K2O_domanda | B32: =IF(OR(BILANCIO_COLTURALE!$C$9="", BILANCIO_COLTURALE!$C$8="", B27=""), 0, BILANCIO_COLTURALE!$C$9 * B27 / 100) -> 36.6
A34: Quantità calcolate | B34: Valore calcolato | C34: Valore Netto
A35: N_netto_kg_ha | B35: =B74 -> 119.545
A36: P2O5_netto_kg_ha | B36: =B87 -> 58.8
A37: K2O_netto_kg_ha | B37: =B97 -> 66.6
A39: N_totale_kg | B39: =B35 * BILANCIO_COLTURALE!$C$6 -> 185.29475
A40: P2O5_totale_kg | B40: =B36 * BILANCIO_COLTURALE!$C$6 -> 91.14
A41: K2O_totale_kg | B41: =B37 * BILANCIO_COLTURALE!$C$6 -> 103.23
A43: Calcolo N | B43: Valore
A44: cap massimo N azotofissazione | B44: =IFERROR(INDEX(DB_COLTURE!$C$2:$C$428, MATCH(BILANCIO_COLTURALE!$C$8, DB_COLTURE!$B$2:$B$428, 0)), "") -> 0 | C44: kg/ha
A45: % azotofissazione utente | B45: =BILANCIO_COLTURALE!F6/100 -> 0
A46: coeff ASS corretto | B46: =IFERROR(INDEX(DB_COLTURE!$D$2:$D$428, MATCH(BILANCIO_COLTURALE!$C$8, DB_COLTURE!$B$2:$B$428, 0)), "") -> 0 | C46: viene letta la colonna specifica in DB_COLTURE
A47: N_calcolato_corretto | B47: =IF(OR(BILANCIO_COLTURALE!$C$9="", B20="", B46=""), 0, B20 * B46/100) -> 0 | C47: kg/ha utilizzati per calcolo azotofissazione
A48: N_fissato | B48: =IF(OR($B$45="",$B$47="",$B$44=""),"",MIN($B$47*$B$45,$B$44)) -> 0 | C48: N fissato cappato (B44)
A49: N_domanda netto azotofissazione | B49: =IF(OR($B$45="",$B$47="",$B$44=""),"",MAX(0,$B$29 - MIN($B$47*$B$45,$B$44))) -> 168.6
A51: ___b1_N_pronto | B51: =IF(B5="",0, IFERROR(INDEX(DB_PARAMETRI!$C$3:$C$5, MATCH(B19, DB_PARAMETRI!$A$3:$A$5, 0)),0) * B5) -> 46.02
A52: Classe_CN | B52: =IF(B8="","", IF(B8<9,"<9", IF(B8>12,">12","9-12"))) -> <9
A53: coeff_Nmin | B53: =IF(OR(B19="",B52=""),0, IFERROR(VLOOKUP(B19&"|"&B52, DB_PARAMETRI!$F$9:$G$17, 2, FALSE),0)) -> 26
A54: ______N_1anno | B54: =B53 * IF(B7="",0,B7) -> 39
A55: ___b2_mineralizzato | B55: =B54 * B21 -> 23.4
A56: BN_fertilità_suolo | B56: =IF(B15="ARBOREE",B55,B51+B55) -> 69.42
A58: CN_c2 | B58: =IFERROR(INDEX(DB_PARAMETRI!$B$21:$D$23, MATCH(B10, DB_PARAMETRI!$A$21:$A$23,0), IF(B19="Tendenzialmente sabbioso",1, IF(B19="Franco",2,3))),0) -> 30
A59: CN_c1_erbacee (step intermedio) | B59: =IF($B$11="","",IF($B$11<150,0%,IF($B$11>250,100%,($B$11-150)/100))) -> 0.5
A60: CN_c1 erbacee (kg/ha) | B60: =B59*B51 -> 23.01
A61: CN_arboree (kg/ha) | B61: =IF($B$11="","",IF($B$11<150,0,IF($B$11>250,30,(30*($B$11-150))/100))) -> 15
A62: CN_lisciviazione | B62: =IF(B15="ARBOREE", B61, IF(B17="c2_drenaggio", B58, B60)) -> 23.01
A64: fc_dispersione | B64: =IFERROR(INDEX(DB_PARAMETRI!$B$26:$D$29, MATCH(B10, DB_PARAMETRI!$A$26:$A$29,0), IF(B19="Tendenzialmente sabbioso",1, IF(B19="Franco",2,3))),0) -> 0.25
A65: DN_dispersione | B65: =B56 * B64 -> 17.355
A67: EN_precessione | B67: =IFERROR(INDEX(DB_PRECESSIONI!$B$3:$B$201, MATCH(BILANCIO_COLTURALE!$C$10, DB_PRECESSIONI!$A$3:$A$201,0)),0) -> 0
A69: FN_organici_prev | B69: =J7 -> 0
A71: ___GN_kg_ha_anno | B71: =BILANCIO_COLTURALE!D31 -> 20
A72: GN_kg_ha_t_coltura | B72: =B71*B21 -> 12
A74: N_apporto | B74: =MAX(0,IF($B$15="ARBOREE", $B$30-$B$56+$B$62+$B$65-$B$69-$B$71, $B$30-$B$56+$B$62+$B$65-$B$67-$B$69-$B$71)) -> 119.545
A75: MAS | B75: =IFERROR(INDEX(DB_COLTURE!$L$2:$L$105, MATCH(BILANCIO_COLTURALE!C8, DB_COLTURE!$B$2:$B$105, 0)), "") -> 180
A76: N_apporto calcolato con MAX MAS | B76: =IF(B74<=$B$75,B74,$B$75) -> 119.545
A78: Calcolo P | B78: Valore
A80: P_const | B80: =IF(B12=40,4,3) -> 3 | C80: costante da profondità suolo
A81: ___P_lim_inf | B81: =IFERROR(INDEX(DB_GIUDIZI_P!$C$2:$C$3, MATCH(B9, DB_GIUDIZI_P!$A$2:$A$3,0)),0) -> 22.9
A82: ___P_lim_sup | B82: =IFERROR(INDEX(DB_GIUDIZI_P!$E$2:$E$3, MATCH(B9, DB_GIUDIZI_P!$A$2:$A$3,0)),0) -> 68.7
A83: BP_fertilità | B83: =IF(B4="",0, IF(B4<B81, B80*B14*(B81-B4), IF(B4>B82, -B80*B14*(B4-B82), 0))) -> 0 | C83: Apporto da fertilità P2O5 dotazioni suolo (Q*Da*P)
A84: ___a_CP | B84: =IFERROR(INDEX(DB_PARAMETRI!$E$3:$E$5, MATCH(B19, DB_PARAMETRI!$A$3:$A$5, 0)), 1.3) -> 1.3 | C84: fattore legato al tipo di suolo
A85: CP_coeff | B85: =B84 + 0.002*B6 -> 1.325 | C85: coefficiente adeguamento apporti P2O5 (se positivo), per stimare non disponibilità P a causa calcare totale
A87: P_apporto | B87: =MAX(0, B31 + IF(B83>0, B83*B85, B83)) -> 58.8
A88: P_giudizio | B88: =BILANCIO_COLTURALE!D19 -> NORMALE
A89: Dotazioni P2O5 fine ciclo | B89: =IF(OR($B$4="",$B$12="",$B$14="",$B$6="",$B$84=""),"",MAX(0,$B$4+(($B$87-$B$31)/(0.1*$B$14*$B$12))/B85)) -> 25 | C89: (apporti-asportazioni)*coefficiente CP (il tutto poi trasformato in ppm) - Pfinale​=max(0;P0​+ΔPppm​)
A91: Calcolo K | B91: Valore
A92: ___Q | B92: =IF($B$2="","",IFERROR( IF($B$2<INDEX(DB_GIUDIZI_K!$C$2:$C$13,MATCH($B$18,DB_GIUDIZI_K!$A$2:$A$13,0)), INDEX(DB_GIUDIZI_K!$C$2:$C$13,MATCH($B$18,DB_GIUDIZI_K!$A$2:$A$13,0))-$B$2, IF($B$2>INDEX(DB_GIUDIZI_K!$D$2:$D$13,MATCH($B$18,DB_GIUDIZI_K!$A$2:$A$13,0)), INDEX(DB_GIUDIZI_K!$D$2:$D$13,MATCH($B$18,DB_GIUDIZI_K!$A$2:$A$13,0))-$B$2, 0 )),"")) -> 0 | C92: Fattore per calcolare Bk
A93: Bk | B93: =B92*B80*B14 -> 0 | C93: Apporto da fertilità K2O dotazioni suolo (Q*Da*P)
A94: DK_coeff | B94: =1 + 0.018*B3 -> 1.27 | C94: Fattore immobilizzazione (1+(0,018*argilla%)
A95: Ck | B95: =IF(B3="","",IF(B3<=5,60,IF(B3<=15,30,IF(B3<=25,20,10)))) -> 30 | C95: Lisciviazione (valori fissi in intervalli argilla%)
A97: K_apporto | B97: =MAX(0, B32+(B94*B93)+B95) -> 66.6
A98: Dotazioni K2O fine ciclo | B98: =IF(OR($B$2="",$B$12="",$B$14="",$B$94=""),"",MAX(0,$B$2 + (($B$97-$B$32)/(0.1*$B$14*$B$12))/$B$94)) -> 156.0569352 | C98: (apporti-asportazioni)*coefficiente Dk (il tutto poi trasformato in ppm)
A105: Produzione stimata | B105: =IFERROR(INDEX(DB_COLTURE!$J$2:$J$428, MATCH(BILANCIO_COLTURALE!$C$8, DB_COLTURE!$B$2:$B$428, 0)), "") -> 6000

Sheet DB_PARAMETRI (hidden)
A1: Azoto pronto b1 e Fosforo fattore CP e classe K
A2: Tessitura_input | B2: Classe_K | C2: b1_coeff (x N_tot g/kg) | D2: Densità apparente Da | E2: Fattore Cp
A3: Tendenzialmente sabbioso | B3: Sabbioso | C3: 28.4 | D3: 1.4 | E3: 1.2
A4: Franco | B4: Medio impasto | C4: 26 | D4: 1.3 | E4: 1.3
A5: Tendenzialmente argilloso | B5: Argilloso/limoso | C5: 24.3 | D5: 1.2 | E5: 1.4
A7: Azoto pronto b2
A8: Tessitura_input | B8: Classe C/N | C8: coeff_Nmin (x SO%) | F8: key | G8: coeff_Nmin
A9: Tendenzialmente sabbioso | B9: 9-12 | C9: 36 | F9: Tendenzialmente sabbioso|9-12 | G9: 36
A10: Franco | B10: 9-12 | C10: 24 | F10: Franco|9-12 | G10: 24
A11: Tendenzialmente argilloso | B11: 9-12 | C11: 12 | F11: Tendenzialmente argilloso|9-12 | G11: 12
A12: Tendenzialmente sabbioso | B12: <9 | C12: 42 | F12: Tendenzialmente sabbioso|<9 | G12: 42
A13: Franco | B13: <9 | C13: 26 | F13: Franco|<9 | G13: 26
A14: Tendenzialmente argilloso | B14: <9 | C14: 18 | F14: Tendenzialmente argilloso|<9 | G14: 18
A15: Tendenzialmente sabbioso | B15: >12 | C15: 24 | F15: Tendenzialmente sabbioso|>12 | G15: 24
A16: Franco | B16: >12 | C16: 20 | F16: Franco|>12 | G16: 20
A17: Tendenzialmente argilloso | B17: >12 | C17: 6 | F17: Tendenzialmente argilloso|>12 | G17: 6
A19: Azoto lisciviazione c2
A20: Drenaggio | B20: CN_c2_sabbioso | C20: CN_c2_franco | D20: CN_c2_argilloso
A21: Lento o impedito | B21: 50 | C21: 40 | D21: 50
A22: Normale | B22: 40 | C22: 30 | D22: 20
A23: Rapido | B23: 50 | C23: 40 | D23: 30
A25: Azoto immobilizzazione e dispersione
A26: Drenaggio | B26: fc_sabbioso | C26: fc_franco | D26: fc_argilloso
A27: Lento o impedito | B27: 0.3 | C27: 0.35 | D27: 0.4
A28: Normale | B28: 0.2 | C28: 0.25 | D28: 0.3
A29: Rapido | B29: 0.15 | C29: 0.2 | D29: 0.25
A32: Arboree | B32: Foraggere | C32: Erbacee | D32: Orticole | E32: Orticole pluriennali | F32: Frutti minori | G32: Baby leaf
A33: Produzione | B33: Produzione | C33: Produzione | D33: Produzione | E33: Produzione | F33: Produzione | G33: Produzione
A34: Pre-Impianto | B34: Pre-semina | E34: Pre-impianto | F34: Pre-impianto
A35: Allevamento
A38: Fertilizzazioni organiche anno precedente
A39: Tipologia | B39: Tutti gli anni | C39: Ogni 2 anni | D39: Ogni 3 anni | E39: Saltuario
A40: Materiali con finalità ammendanti | B40: 0.5 | C40: 0.3 | D40: 0.2 | E40: 0.2
A41: Liquame bovino | B41: 0.3 | C41: 0.15 | D41: 0.1 | E41: 0
A42: Liquame suino e pollina | B42: 0.15 | C42: 0.1 | D42: 0.05 | E42: 0
A45: GN
A46: Pianura limitrofa zona urbanizzata | B46: 20
A47: Pianura lontana zona urbanizzata | B47: 15
A48: Collina e montagna | B48: 10
A51: Profondità considerata
A52: 30
A53: 40
A56: Fosforo
A57: ppm P
A58: ppm P2O5
A60: Potassio
A61: ppm K
A62: ppm K2O

Sheet DB_COLTURE (hidden)
A1: Gruppo colturale | B1: Coltura | C1: Fissazione max N | D1: N_coeff_ASS | E1: N_coeff | F1: P2O5_coeff | G1: K2O_coeff | H1: Colonna1 | I1: %_azotofissazione | J1: Resa riferimento | K1: coeff_t | L1: MAS_N_max_kg_ha | M1: Note | N1: QUOTA BASE
A2: ARBOREE | B2: Actinidia frutti, legno e foglie | E2: 0.59 | F2: 0.16 | G2: 0.5 | H2: ASS | I2: 0 | J2: 30000 | K2: 1 | L2: 150
A3: ARBOREE | B3: Albicocco frutti, legno e foglie | E3: 0.55 | F3: 0.13 | G3: 0.5 | H3: ASS | I3: 0 | J3: 16000 | K3: 1 | L3: 135
A4: ARBOREE | B4: Castagno frutti, legno e foglie | E4: 1.03 | F4: 0.3 | G4: 0.9 | H4: ASS | I4: 0 | J4: 5000 | K4: 1 | L4: 110
A5: ARBOREE | B5: Ciliegio frutti, legno e foglie | E5: 0.67 | F5: 0.22 | G5: 0.5 | H5: ASS | I5: 0 | J5: 9000 | K5: 1 | L5: 120
A6: ARBOREE | B6: Melo frutti, legno e foglie | E6: 0.29 | F6: 0.08 | G6: 0.3 | H6: ASS | I6: 0 | J6: 40000 | K6: 1 | L6: 120
A7: ARBOREE | B7: Nettarine frutti, legno e foglie | E7: 0.64 | F7: 0.14 | G7: 0.5 | H7: ASS | I7: 0 | J7: 25000 | K7: 1 | L7: 175
A8: ARBOREE | B8: Nocciolo frutti, legno e foglie | E8: 3.1 | F8: 1.35 | G8: 2.9 | H8: ASS | I8: 0 | J8: 1500 | K8: 1 | L8: 100
A9: ARBOREE | B9: Noce da frutto frutti, legno e foglie | E9: 3.2 | F9: 1 | G9: 1.3 | H9: ASS | I9: 0 | J9: 4000 | K9: 1 | L9: 120
A10: ARBOREE | B10: Olivo olive, legno e foglie | E10: 2.48 | F10: 0.48 | G10: 2 | H10: ASS | I10: 0 | J10: 4000 | K10: 1 | L10: 130
A11: ARBOREE | B11: Pero frutti, legno e foglie | E11: 0.33 | F11: 0.08 | G11: 0.3 | H11: ASS | I11: 0 | J11: 35000 | K11: 1 | L11: 120
A12: ARBOREE | B12: Pesco frutti, legno e foglie | E12: 0.58 | F12: 0.17 | G12: 0.5 | H12: ASS | I12: 0 | J12: 25000 | K12: 1 | L12: 175
A13: ARBOREE | B13: Susino frutti, legno e foglie | E13: 0.49 | F13: 0.1 | G13: 0.49 | H13: ASS | I13: 0 | J13: 25000 | K13: 1 | L13: 120
A14: ARBOREE | B14: Vite per uva da vino (collina e montagna) grappoli, tralci e foglie | E14: 0.57 | F14: 0.26 | G14: 0.67 | H14: ASS | I14: 0 | J14: 15000 | K14: 1 | L14: 100
A15: ARBOREE | B15: Vite per uva da vino (pianura) grappoli, legno e foglie | E15: 0.62 | F15: 0.28 | G15: 0.74 | H15: ASS | I15: 0 | J15: 18000 | K15: 1 | L15: 100
A16: BABY_LEAF | B16: Lattuga (baby leaf) | E16: 0.27 | F16: 0.08 | G16: 0.4 | H16: ASP | I16: 0 | J16: 10000 | K16: 0.3 | L16: 40 | M16: Per singolo ciclo
A17: BABY_LEAF | B17: Rucola 1° taglio (baby leaf) | E17: 0.43 | F17: 0.13 | G17: 0.4 | H17: ASP | I17: 0 | J17: 10000 | K17: 0.3 | L17: 40 | M17: Per singolo ciclo
A18: BABY_LEAF | B18: Rucola 2° taglio (baby leaf) | E18: 0.54 | F18: 0.15 | G18: 0.6 | H18: ASP | I18: 0 | J18: 32000 | K18: 0.3 | L18: 40 | M18: Per singolo ciclo
A19: BABY_LEAF | B19: Spinacio (baby leaf) | E19: 0.34 | F19: 0.13 | G19: 0.7 | H19: ASP | I19: 0 | J19: 11500 | K19: 0.3 | L19: 40 | M19: Per singolo ciclo
A20: BABY_LEAF | B20: Valerianella (baby leaf) | E20: 0.49 | F20: 0.15 | G20: 0.5 | H20: ASP | I20: 0 | J20: 11500 | K20: 0.3 | L20: 40 | M20: Per singolo ciclo
A21: BABY_LEAF | B21: Baby leaf generica | E21: 0.39 | F21: 0.12 | G21: 0.5 | H21: ASP | I21: 0 | J21: 11500 | K21: 0.3 | L21: 40 | M21: Per singolo ciclo
A22: ERBACEE | B22: Barbabietola da zucchero (pianta intera) | E22: 0.31 | F22: 0.14 | G22: 0.33 | H22: ASP | I22: 0 | J22: 70000 | K22: 0.67 | L22: 160
A23: ERBACEE | B23: Barbabietola da zucchero (radici) | E23: 0.22 | F23: 0.14 | G23: 0.21 | H23: ASP | I23: 0 | J23: 50000 | K23: 0.67 | L23: 160
A24: ERBACEE | B24: Colza | E24: 3.39 | F24: 1.28 | G24: 0.99 | H24: ASP | I24: 0 | J24: 2500 | K24: 0.6 | L24: 150
A25: ERBACEE | B25: Colza pianta intera | E25: 6.21 | F25: 2.66 | G25: 7.86 | H25: ASS | I25: 0 | J25: 2500 | K25: 0.6 | L25: 150
A26: ERBACEE | B26: Girasole (acheni) | E26: 2.8 | F26: 1.24 | G26: 1.15 | H26: ASP | I26: 0 | J26: 3000 | K26: 0.75 | L26: 120
A27: ERBACEE | B27: Girasole (pianta intera) | E27: 4.31 | F27: 1.9 | G27: 8.51 | H27: ASS | I27: 0 | J27: 3000 | K27: 0.75 | L27: 120
A28: ERBACEE | B28: Grano duro (granella) | E28: 3.11 | F28: 0.85 | G28: 0.59 | H28: ASP | I28: 0 | J28: 6000 | K28: 0.6 | L28: 190
A29: ERBACEE | B29: Grano duro (pianta intera) | E29: 3.11 | F29: 1.06 | G29: 1.99 | H29: ASS | I29: 0 | J29: 6000 | K29: 0.6 | L29: 190
A30: ERBACEE | B30: Grano tenero FF (granella) | E30: 3.11 | F30: 0.87 | G30: 0.53 | H30: ASP | I30: 0 | J30: 6000 | K30: 0.6 | L30: 180
A31: ERBACEE | B31: Grano tenero FF (pianta intera) | E31: 3.11 | F31: 1.06 | G31: 1.99 | H31: ASS | I31: 0 | J31: 6000 | K31: 0.6 | L31: 180
A32: ERBACEE | B32: Grano tenero biscottiero (granella) | E32: 2.81 | F32: 0.98 | G32: 0.61 | H32: ASP | I32: 0 | J32: 6000 | K32: 0.6 | L32: 180
A33: ERBACEE | B33: Grano tenero biscottiero pianta intera | E33: 2.81 | F33: 1.19 | G33: 2.29 | H33: ASS | I33: 0 | J33: 6000 | K33: 0.6 | L33: 180
A34: ERBACEE | B34: Grano tenero FF/FPS (granella) | E34: 2.96 | F34: 0.78 | G34: 0.5 | H34: ASP | I34: 0 | J34: 6000 | K34: 0.6 | L34: 180
A35: ERBACEE | B35: Grano tenero FF/FPS (pianta intera) | E35: 2.96 | F35: 0.98 | G35: 1.87 | H35: ASS | I35: 0 | J35: 6000 | K35: 0.6 | L35: 180
A36: ERBACEE | B36: Mais da granella (granella) | E36: 2.27 | F36: 0.69 | G36: 0.38 | H36: ASP | I36: 0 | J36: 12000 | K36: 0.75 | L36: 280 | M36: Ridurre del 20% se coltura in asciutta o semina tardiva dopo erbaio invernale
A37: ERBACEE | B37: Mais da granella (pianta intera) | E37: 2.27 | F37: 1 | G37: 2.23 | H37: ASS | I37: 0 | J37: 12000 | K37: 0.75 | L37: 280 | M37: Ridurre del 20% se coltura in asciutta o semina tardiva dopo erbaio invernale
A38: ERBACEE | B38: Mais trinciato | E38: 0.39 | F38: 0.15 | G38: 0.33 | H38: ASP | I38: 0 | J38: 50000 | K38: 0.75 | L38: 280 | M38: Ridurre del 20% se coltura in asciutta o semina tardiva dopo erbaio invernale
A39: ERBACEE | B39: Orzo (granella) | E39: 1.81 | F39: 0.8 | G39: 0.52 | H39: ASP | I39: 0 | J39: 6500 | K39: 0.6 | L39: 150
A40: ERBACEE | B40: Orzo (pianta intera) | E40: 2.24 | F40: 0.98 | G40: 1.89 | H40: ASS | I40: 0 | J40: 6500 | K40: 0.6 | L40: 150
A41: ERBACEE | B41: Riso (granella) | E41: 1.38 | F41: 0.7 | G41: 0.55 | H41: ASP | I41: 0 | J41: 7000 | K41: 0.67 | L41: 160
A42: ERBACEE | B42: Riso (granella+paglia) | E42: 2.03 | F42: 0.92 | G42: 2.07 | H42: ASS | I42: 0 | J42: 7000 | K42: 0.67 | L42: 160
A43: ERBACEE | B43: Soia (granella) | C43: 180 | D43: 6.3 | E43: 5.82 | F43: 1.36 | G43: 2.01 | H43: ASP | I43: 75 | J43: 3500 | K43: 0.75 | L43: 30 | M43: Solo in presemina o in copertura immediatamente dopo la semina
A44: ERBACEE | B44: Soia (pianta intera) | C44: 180 | D44: 6.3 | E44: 6.3 | F44: 1.76 | G44: 3.05 | H44: ASS | I44: 75 | J44: 3500 | K44: 0.75 | L44: 30 | M44: Solo in presemina o in copertura immediatamente dopo la semina
A45: ERBACEE | B45: Sorgo da foraggio | E45: 0.3 | F45: 0.1 | G45: 0.35 | H45: ASS | I45: 0 | J45: 0 | K45: 0.75 | L45: 220 | M45: Ridurre del 45% se succede cereale autunno vernino
A46: ERBACEE | B46: Sorgo da granella (solo granella) | E46: 1.59 | F46: 0.73 | G46: 0.43 | H46: ASP | I46: 0 | J46: 7500 | K46: 0.75 | L46: 220 | M46: Ridurre del 45% se succede cereale autunno vernino
A47: ERBACEE | B47: Sorgo da granella (pianta intera) | E47: 2.47 | F47: 0.95 | G47: 1.57 | H47: ASS | I47: 0 | J47: 7500 | K47: 0.75 | L47: 220 | M47: Ridurre del 45% se succede cereale autunno vernino
A48: ERBACEE | B48: Tabacco Bright | E48: 2 | F48: 0.6 | G48: 3.5 | H48: ASP | I48: 0 | J48: 0 | K48: 0.75 | L48: 200
A49: ERBACEE | B49: Tabacco Bright pianta intera | E49: 2.62 | F49: 1.04 | G49: 4.09 | H49: ASS | I49: 0 | J49: 0 | K49: 0.75 | L49: 200
A50: ERBACEE | B50: Tabacco Burley | E50: 3.37 | F50: 0.3 | G50: 3.7 | H50: ASP | I50: 0 | J50: 0 | K50: 0.75 | L50: 200
A51: ERBACEE | B51: Tabacco Burley pianta intera | E51: 3.71 | F51: 0.62 | G51: 5.11 | H51: ASS | I51: 0 | J51: 0 | K51: 0.75 | L51: 200
A52: FORAGGERE | B52: Erba medica | C52: 200 | D52: 2.06 | E52: 2.06 | F52: 0.53 | G52: 2.03 | H52: ASP | I52: 90 | J52: 12500 | K52: 1 | L52: 0
A53: FRUTTI_MINORI | B53: Lampone | E53: 0.16 | F53: 0.12 | G53: 0.2 | H53: ASP | I53: 0 | J53: 0 | K53: 1 | L53: 110
A54: FRUTTI_MINORI | B54: Lampone biomassa epigea | E54: 0.3 | F54: 0.3 | G54: 0.7 | H54: ASS | I54: 0 | J54: 0 | K54: 1 | L54: 110
A55: FRUTTI_MINORI | B55: Mirtillo | E55: 0.14 | F55: 0.07 | G55: 0.1 | H55: ASP | I55: 0 | J55: 17000 | K55: 1 | L55: 115
A56: FRUTTI_MINORI | B56: Mirtillo biomassa epigea | E56: 0.3 | F56: 0.2 | G56: 0.5 | H56: ASS | I56: 0 | J56: 0 | K56: 1 | L56: 115
A57: FRUTTI_MINORI | B57: Ribes | E57: 0.14 | F57: 0.1 | G57: 0.4 | H57: ASP | I57: 0 | J57: 0 | K57: 1 | L57: 110
A58: FRUTTI_MINORI | B58: Ribes biomassa epigea | E58: 0.4 | F58: 0.4 | G58: 1 | H58: ASS | I58: 0 | J58: 0 | K58: 1 | L58: 110
A59: FRUTTI_MINORI | B59: uva spina biomassa epigea | E59: 0.3 | F59: 0.3 | G59: 0.6 | H59: ASS | I59: 0 | J59: 0 | K59: 1 | L59: 110
A60: FRUTTI_MINORI | B60: Rovo inerme | E60: 0.21 | F60: 0.11 | G60: 0.3 | H60: ASP | I60: 0 | J60: 0 | K60: 1 | L60: 140
A61: FRUTTI_MINORI | B61: Rovo inerme biomassa epigea | E61: 0.4 | F61: 0.4 | G61: 0.7 | H61: ASS | I61: 0 | J61: 0 | K61: 1 | L61: 140
A62: ORTICOLE | B62: Mais dolce (spighe) | E62: 0.85 | F62: 0.42 | G62: 0.23 | H62: ASP | I62: 0 | J62: 8000 | K62: 0.75 | L62: 170 | M62: Ridurre del 20% se coltura in asciutta o semina tardiva dopo erbaio invernale
A63: ORTICOLE | B63: Mais dolce (pianta intera) | E63: 1.42 | F63: 0.54 | G63: 0.98 | H63: ASS | I63: 0 | J63: 8000 | K63: 0.75 | L63: 170 | M63: Ridurre del 20% se coltura in asciutta o semina tardiva dopo erbaio invernale
A64: ORTICOLE | B64: Aglio | E64: 1.08 | F64: 0.27 | G64: 0.95 | H64: ASP | I64: 0 | J64: 9000 | K64: 0.6 | L64: 170
A65: ORTICOLE | B65: Basilico | E65: 0.37 | F65: 0.13 | G65: 0.39 | H65: ASP | I65: 0 | J65: 20000 | K65: 0.5 | L65: 110
A66: ORTICOLE | B66: Bietola da coste | E66: 0.46 | F66: 0.19 | G66: 0.57 | H66: ASP | I66: 0 | J66: 25000 | K66: 0.5 | L66: 190
A67: ORTICOLE | B67: Bietola da foglie | E67: 0.54 | F67: 0.3 | G67: 0.55 | H67: ASP | I67: 0 | J67: 25000 | K67: 0.5 | L67: 280
A68: ORTICOLE | B68: Broccolo | E68: 0.52 | F68: 0.17 | G68: 0.57 | H68: ASP | I68: 0 | J68: 20000 | K68: 0.5 | L68: 180
A69: ORTICOLE | B69: Cappuccio | E69: 0.53 | F69: 0.19 | G69: 0.53 | H69: ASP | I69: 0 | J69: 27000 | K69: 0.5 | L69: 250
A70: ORTICOLE | B70: Carota | E70: 0.41 | F70: 0.16 | G70: 0.69 | H70: ASP | I70: 0 | J70: 50000 | K70: 0.5 | L70: 195
A71: ORTICOLE | B71: Cavolfiore | E71: 0.47 | F71: 0.15 | G71: 0.56 | H71: ASP | I71: 0 | J71: 35000 | K71: 0.5 | L71: 225
A72: ORTICOLE | B72: Cetriolo | E72: 0.18 | F72: 0.09 | G72: 0.25 | H72: ASP | I72: 0 | J72: 120000 | K72: 0.5 | L72: 225
A73: ORTICOLE | B73: Cicoria | E73: 0.44 | F73: 0.32 | G73: 0.88 | H73: ASP | I73: 0 | J73: 28000 | K73: 0.5 | L73: 210
A74: ORTICOLE | B74: Cipolla | E74: 0.31 | F74: 0.12 | G74: 0.32 | H74: ASP | I74: 0 | J74: 45000 | K74: 0.5 | L74: 160
A75: ORTICOLE | B75: Cocomero | E75: 0.19 | F75: 0.12 | G75: 0.29 | H75: ASP | I75: 0 | J75: 60000 | K75: 0.5 | L75: 130
A76: ORTICOLE | B76: Endivie (indivie riccia e scarola) | E76: 0.47 | F76: 0.32 | G76: 0.85 | H76: ASP | I76: 0 | J76: 34000 | K76: 0.5 | L76: 130
A77: ORTICOLE | B77: Fagiolino | C77: 30 | D77: 0.75 | E77: 0.75 | F77: 0.25 | G77: 0.75 | H77: ASP | I77: 75 | J77: 9000 | K77: 0.5 | L77: 70 | M77: Se da mercato fresco max 50
A78: ORTICOLE | B78: Fagiolo in baccelli da sgranare | C78: 60 | D78: 3.84 | E78: 3.84 | F78: 2.06 | G78: 3.46 | H78: ASP | I78: 80 | J78: 5000 | K78: 0.5 | L78: 70
A79: ORTICOLE | B79: Fagiolo secco | C79: 60 | D79: 6.6 | E79: 6.6 | F79: 3.55 | G79: 5.9 | H79: ASP | I79: 80 | J79: 3000 | K79: 0.5 | L79: 70
A80: ORTICOLE | B80: Finocchio | E80: 0.58 | F80: 0.11 | G80: 0.8 | H80: ASP | I80: 0 | J80: 30000 | K80: 0.5 | L80: 240
A81: ORTICOLE | B81: Fragola | E81: 0.45 | F81: 0.23 | G81: 0.7 | H81: ASP | I81: 0 | J81: 30000 | K81: 1 | L81: 160
A82: ORTICOLE | B82: Lattuga | E82: 0.31 | F82: 0.09 | G82: 0.5 | H82: ASP | I82: 0 | J82: 32000 | K82: 0.3 | L82: 130
A83: ORTICOLE | B83: Lattuga coltura protetta | E83: 0.31 | F83: 0.09 | G83: 0.5 | H83: ASP | I83: 0 | J83: 32000 | K83: 0.3 | L83: 130
A84: ORTICOLE | B84: Melanzana | E84: 0.52 | F84: 0.19 | G84: 0.6 | H84: ASP | I84: 0 | J84: 80000 | K84: 0.5 | L84: 175
A85: ORTICOLE | B85: Melone | E85: 0.39 | F85: 0.17 | G85: 0.5 | H85: ASP | I85: 0 | J85: 40000 | K85: 0.5 | L85: 140
A86: ORTICOLE | B86: Patata | E86: 0.42 | F86: 0.16 | G86: 0.7 | H86: ASP | I86: 0 | J86: 47500 | K86: 0.67 | L86: 190
A87: ORTICOLE | B87: Peperone | E87: 0.38 | F87: 0.14 | G87: 0.5 | H87: ASP | I87: 0 | J87: 50000 | K87: 0.5 | L87: 200
A88: ORTICOLE | B88: Pisello mercato fresco | C88: 230 | D88: 4.75 | E88: 4.75 | F88: 0.79 | G88: 2.2 | H88: ASP | I88: 85 | J88: 6000 | K88: 0.5 | L88: 30
A89: ORTICOLE | B89: Pomodoro da industria | E89: 0.26 | F89: 0.13 | G89: 0.3 | H89: ASP | I89: 0 | J89: 70000 | K89: 0.75 | L89: 180
A90: ORTICOLE | B90: Pomodoro da mensa a pieno campo | E90: 0.26 | F90: 0.12 | G90: 0.4 | H90: ASP | I90: 0 | J90: 70000 | K90: 0.75 | L90: 180
A91: ORTICOLE | B91: Pomodoro da mensa in serra | E91: 0.26 | F91: 0.1 | G91: 0.4 | H91: ASP | I91: 0 | J91: 115000 | K91: 0.75 | L91: 180
A92: ORTICOLE | B92: Porro | E92: 0.38 | F92: 0.14 | G92: 0.3 | H92: ASP | I92: 0 | J92: 40000 | K92: 0.5 | L92: 126
A93: ORTICOLE | B93: Prezzemolo | E93: 0.24 | F93: 0.14 | G93: 0.4 | H93: ASP | I93: 0 | J93: 20000 | K93: 0.5 | L93: 100
A94: ORTICOLE | B94: Radicchio | E94: 0.46 | F94: 0.3 | G94: 0.4 | H94: ASP | I94: 0 | J94: 20000 | K94: 0.5 | L94: 190 | M94: Varietà Chioggia max 161
A95: ORTICOLE | B95: Ravanello | E95: 0.46 | F95: 0.19 | G95: 0.3 | H95: ASP | I95: 0 | J95: 30000 | K95: 0.5 | L95: 80
A96: ORTICOLE | B96: Scalogno | E96: 0.27 | F96: 0.13 | G96: 0.2 | H96: ASP | I96: 0 | J96: 18500 | K96: 0.5 | L96: 120
A97: ORTICOLE | B97: Sedano | E97: 0.54 | F97: 0.2 | G97: 0.7 | H97: ASP | I97: 0 | J97: 50000 | K97: 0.5 | L97: 250
A98: ORTICOLE | B98: Spinacio | E98: 0.61 | F98: 0.18 | G98: 0.7 | H98: ASP | I98: 0 | J98: 20000 | K98: 0.5 | L98: 190 | M98: Se da mercato fresco max 125
A99: ORTICOLE | B99: Verza (cavolo) | E99: 0.55 | F99: 0.2 | G99: 0.5 | H99: ASP | I99: 0 | J99: 24000 | K99: 0.5 | L99: 150
A100: ORTICOLE | B100: Verza da industria | E100: 0.41 | F100: 0.21 | G100: 0.5 | H100: ASP | I100: 0 | J100: 35000 | K100: 0.5 | L100: 150
A101: ORTICOLE | B101: Zucca | E101: 0.39 | F101: 0.1 | G101: 0.7 | H101: ASP | I101: 0 | J101: 35000 | K101: 0.5 | L101: 210
A102: ORTICOLE | B102: Zucchino da industria | E102: 0.49 | F102: 0.17 | G102: 0.8 | H102: ASP | I102: 0 | J102: 50000 | K102: 0.5 | L102: 190
A103: ORTICOLE | B103: Zucchino da mercato fresco | E103: 0.44 | F103: 0.16 | G103: 0.7 | H103: ASP | I103: 0 | J103: 40000 | K103: 0.5 | L103: 190
A104: ORTICOLE_PLURIENNALI | B104: Asparago verde (turioni) | E104: 1.41 | F104: 0.32 | G104: 0.83 | H104: ASP | I104: 0 | J104: 8000 | K104: 1 | L104: 210
A105: ORTICOLE_PLURIENNALI | B105: Asparago verde (pianta intera) | E105: 2.56 | F105: 0.66 | G105: 2.24 | H105: ASS | I105: 0 | J105: 8000 | K105: 1 | L105: 210

Sheet DB_COLTURE_NO_VENETO (hidden)
A1: Gruppo colturale | B1: Coltura | C1: Fissazione max N | D1: N_coeff_ASS | E1: N_coeff | F1: P2O5_coeff | G1: K2O_coeff | H1: Colonna1 | I1: %_azotofissazione | J1: Resa riferimento | K1: coeff_t | L1: MAS_N_max_kg_ha | M1: Note | N1: QUOTA BASE
B2: Actinidia solo frutti | E2: 0.15 | F2: 0.04 | G2: 0.3 | H2: ASP | I2: 0 | J2: 30000 | K2: 1 | L2: 150 | N2: 80
B3: Albicocco solo frutti | E3: 0.09 | F3: 0.05 | G3: 0.3 | H3: ASP | J3: 16000 | K3: 1 | L3: 135 | N3: 65
B4: Ciliegio solo frutti | E4: 0.13 | F4: 0.04 | G4: 0.2 | H4: ASP | J4: 9000 | K4: 1 | L4: 120 | N4: 50
B5: Melo solo frutti | E5: 0.06 | F5: 0.03 | G5: 0.1 | H5: ASP | J5: 40000 | K5: 1 | L5: 120 | N5: 60
B6: Nettarine solo frutti | E6: 0.14 | F6: 0.06 | G6: 0.3 | H6: ASP | J6: 25000 | K6: 1 | L6: 175 | N6: 75
B7: Nocciolo solo frutti | E7: 2.82 | F7: 0.43 | G7: 1.2 | H7: ASP | J7: 1500 | K7: 1 | L7: 100 | N7: 30
B8: Noce solo frutti | E8: 1.48 | F8: 0.5 | G8: 0.4 | H8: ASP | J8: 4000 | K8: 1 | L8: 120 | N8: 30
B9: Olivo solo olive | E9: 1 | F9: 0.23 | G9: 0.4 | H9: ASP | J9: 4000 | K9: 1 | L9: 130 | N9: 60
B10: Pero solo frutti | E10: 0.06 | F10: 0.03 | G10: 0.1 | H10: ASP | J10: 35000 | K10: 1 | L10: 120 | N10: 60
B11: Pesco solo frutti | E11: 0.13 | F11: 0.06 | G11: 0.1 | H11: ASP | J11: 25000 | K11: 1 | L11: 175 | N11: 75
B12: Susino solo frutti | E12: 0.09 | F12: 0.03 | G12: 0.22 | H12: ASP | J12: 25000 | K12: 1 | L12: 120 | N12: 60
B13: Vite per uva da vino (collina e montagna) solo grappoli | E13: 0.27 | F13: 0.07 | G13: 0.3 | H13: ASP | J13: 10000 | K13: 1 | L13: 100 | N13: 15
B14: Vite per uva da vino (pianura) solo grappoli | E14: 0.2 | F14: 0.07 | G14: 0.3 | H14: ASP | J14: 20000 | K14: 1 | L14: 100 | N14: 15
A15: ERBACEE | B15: Avena | E15: 2.24 | F15: 0.67 | G15: 0.51 | H15: ASP | I15: 0 | J15: 3200 | K15: 0.6 | L15: 110
A16: ERBACEE | B16: Avena pianta intera | E16: 2.24 | F16: 0.93 | G16: 2.19 | H16: ASS | I16: 0 | J16: 3200 | K16: 0.6 | L16: 110
A17: ERBACEE | B17: Farro | E17: 2.57 | F17: 0.87 | G17: 0.52 | H17: ASP | I17: 0 | J17: 2000 | K17: 0.6
A18: ERBACEE | B18: Farro (pianta intera) | E18: 2.7 | F18: 0.98 | G18: 1.53 | H18: ASS | I18: 0 | J18: 2000 | K18: 0.6
A19: ERBACEE | B19: Segale | E19: 1.93 | F19: 0.7 | G19: 0.5 | H19: ASP | I19: 0 | J19: 4000 | K19: 0.6 | L19: 120
A20: ERBACEE | B20: Segale pianta intera | E20: 2.78 | F20: 1.23 | G20: 3.11 | H20: ASS | I20: 0 | J20: 4000 | K20: 0.6 | L20: 120
A21: ERBACEE | B21: Triticale | E21: 2.54 | F21: 0.7 | G21: 0.5 | H21: ASP | I21: 0 | J21: 7500 | K21: 0.6 | L21: 150
A22: ERBACEE | B22: Triticale pianta intera | E22: 2.54 | F22: 1.1 | G22: 3 | H22: ASS | I22: 0 | J22: 7500 | K22: 0.6 | L22: 150
A23: ORTICOLE | B23: Broccoletto di rapa (cime di rapa) | E23: 0.41 | F23: 0.16 | G23: 0.49 | H23: ASP | I23: 0 | J23: 0 | K23: 0.5

Sheet DB_GIUDIZI_K (hidden)
A1: USDA | B1: USDA_sigla | C1: INF | D1: SUP
A2: Sabbioso | B2: S | C2: 96 | D2: 144 | E2: Tendenzialmente sabbioso | F2: ppm K2O
A3: Sabbioso Franco | B3: SF | C3: 96 | D3: 144 | E3: Tendenzialmente sabbioso
A4: Limoso | B4: L | C4: 120 | D4: 180 | E4: Franco
A5: Franco Sabbioso | B5: FS | C5: 96 | D5: 144 | E5: Tendenzialmente sabbioso
A6: Franco | B6: F | C6: 120 | D6: 180 | E6: Franco
A7: Franco Limoso | B7: FL | C7: 120 | D7: 180 | E7: Franco
A8: Franco Sabbioso Argilloso | B8: FSA | C8: 120 | D8: 180 | E8: Franco
A9: Franco Argilloso | B9: FA | C9: 120 | D9: 180 | E9: Franco
A10: Franco Argilloso Limoso | B10: FLA | C10: 144 | D10: 216 | E10: Tendenzialmente argilloso
A11: Argilloso Sabbioso | B11: AS | C11: 144 | D11: 216 | E11: Tendenzialmente argilloso
A12: Argilloso Limoso | B12: AL | C12: 144 | D12: 216 | E12: Tendenzialmente argilloso
A13: Argilloso | B13: A | C13: 144 | D13: 216 | E13: Tendenzialmente argilloso

Sheet DB_GIUDIZI_P (hidden)
A1: Metodo P | B1: Limite inferiore Basso | C1: Limite inferiore normalità (ppm) | E1: Limite superiore normalità (ppm)
A2: Olsen | B2: 11.45 | C2: 22.9 | D2: 34.35 | E2: 68.7 | F2: ppm P2O5
A3: Bray-Kurtz | B3: 28.63 | C3: 57.25 | D3: 85.88 | E3: 171.75

Sheet DB_PRECESSIONI (hidden)
A1: Precessione (coltura precedente) | B1: N da residui (kg/ha)
A2: Nessuna/Non Nota
A3: Barbabietola | B3: 30
A4: Cereali autunno-vernini - paglia asportata | B4: -10
A5: Cereali autunno-vernini - paglia interrata | B5: -30
A6: Colza | B6: 20
A7: Girasole | B7: 0
A8: Mais - stocchi asportati | B8: -10
A9: Mais - stocchi interrati | B9: -40
A10: Medica in buone condizioni | B10: 80
A11: Prato polifita con + del 15% di leguminose o medicaio diradato | B11: 60
A12: Prato polifita con leguminose dal 5 al 15% | B12: 40
A13: Prato polifita con meno del 5% di leguminose | B13: 15
A14: Prato di breve durata o trifoglio | B14: 30
A15: Patata | B15: 35
A16: Pomodoro, altre orticole (es.: cucurbitacee, crucifere e liliacee) | B16: 30
A17: Orticole minori a foglia | B17: 25
A18: Soia | B18: 0
A19: Leguminose da granella (pisello, fagiolo, lenticchia, ecc.) | B19: 40
A20: Sorgo | B20: -40
A21: Sovescio di leguminose (in copertura autunno-invernale o estiva) | B21: 50

Sheet DB_USDA_MAP (hidden)
A1: USDA_class | B1: Sigla_predef | C1: Raggruppamento
A2: Sabbioso | B2: S | C2: Tendenzialmente sabbioso
A3: Sabbioso Franco | B3: SF | C3: Tendenzialmente sabbioso
A4: Limoso | B4: L | C4: Franco
A5: Franco Sabbioso | B5: FS | C5: Tendenzialmente sabbioso
A6: Franco | B6: F | C6: Franco
A7: Franco Limoso | B7: FL | C7: Franco
A8: Franco Sabbioso Argilloso | B8: FSA | C8: Franco
A9: Franco Argilloso | B9: FA | C9: Franco
A10: Franco Argilloso Limoso | B10: FLA | C10: Tendenzialmente argilloso
A11: Argilloso Sabbioso | B11: AS | C11: Tendenzialmente argilloso
A12: Argilloso Limoso | B12: AL | C12: Tendenzialmente argilloso
A13: Argilloso | B13: A | C13: Tendenzialmente argilloso
